[Event "Bangabandhu Premier Div League 2022"]
[Site "Dhaka"]
[Date "2022.12.08"]
[Round "9.7"]
[White "Sankalan Shah"]
[Black "Harikrishnan.A.Ra"]
[Result "0-1"]
[ECO "D41"]
[WhiteElo "2218"]
[BlackElo "2409"]
[Annotator "TA"]
[PlyCount "110"]
[EventDate "2022.12.01"]
[EventCountry "BAN"]
[SourceTitle "playchess.com"]
[Source "ChessBase"]
[SourceQuality "1"]
[TimeControl "40/5400+30:1800+30"]

{[%evp 21,110,12,20,27,37,22,2,14,21,0,0,0,0,-15,0,-26,-33,-160,-154,-153,-152,-167,-88,-85,-93,-85,-91,-158,-160,-162,-157,-157,-152,-185,-137,-222,-58,-227,-178,-185,-152,-272,-274,-247,-171,-174,-180,-174,-176,-175,-175,-173,-158,-280,-255,-251,-261,-268,-246,-254,-251,-243,-239,-365,-361,-353,-369,-418,-399,-557,-536,-955,-889,-862,-780,-713,-703,-1060,-1012,-830,-781,-2075,-1779,-2326,-2425,-1997,-1634,-1539,-1526,-1047,-679]} 1. d4 {[%emt 0:00:02]} Nf6 {[%emt 0:00:07]} 2. c4 {[%emt 0:00:06]} e6 {[%emt 1:31:23]} 3. Nf3 {[%emt 0:00:13]} d5 {[%emt 0:00:00]} 4. Nc3 {[%emt 0:00:07]} c5 {[%emt 0:01:00]} 5. cxd5 {[%emt 0:00:22]} Nxd5 {[%emt 0:00:00]} 6. e4 {[%emt 0:00:10]} Nxc3 {[%emt 0:00:00]} 7. bxc3 {[%emt 1:33:00]} cxd4 {[%emt 0:00:00]} 8. cxd4 {[%emt 0:00:00]} Bb4+ {[%emt 0:00:00]} 9. Bd2 {[%emt 0:00:00]} Bxd2+ {[%emt 0:00:00]} 10. Qxd2 {[%emt 0:00:00]} O-O {[%emt 0:03:00]} 11. Bc4 {[%emt 0:00:00]} Nd7 {[%emt 0:00:00]} 12. O-O {[%emt 0:02:30] D41: Queen's Gambit Declined: Semi-Tarrasch with 5 cxd5.} b6 {[%emt 0:01:00]} 13. Rad1 {[%emt 0:00:00]} Bb7 {[%emt 0:00:30]} 14. Bd3 {[%emt 0:00:00] The position is equal.} Rc8 {[%emt 0:00:00]} 15. h4 h6 {[%emt 0:01:00]} 16. Rfe1 {[%emt 0:02:00]} Qc7 {[%emt 0:00:30] [#]} 17. Re3 $146 {[%emt 0:00:30]} ({Predecessor:} 17. Rc1 Qd6 18. Qe3 Rxc1 19. Rxc1 Rc8 20. Rxc8+ Bxc8 21. Qc1 Bb7 22. a4 Qc6 23. Qd1 {0-1 (50) Mihajlov,S (2387)-Dominguez Perez,L (2763) chess24.com INT 2020}) 17... Nf6 {[%emt 0:00:30]} (17... Qc3 {simplifies} 18. e5 Qxd2 19. Nxd2 Bd5) 18. Ne5 {[%emt 0:00:30]} Rfd8 {[%emt 0:00:30]} 19. Rg3 {[%emt 0:00:30]} (19. Qb4 $15) 19... Nh5 $17 {[%emt 0:00:30]} 20. Rg4 {[%emt 0:00:30]} ({Much worse is} 20. Rf3 f6 21. Ng6 Rxd4) 20... Rxd4 {[%emt 0:00:00]} 21. Nf3 Nf6 {[%emt 0:01:00]} ({Better is} 21... Rd7 $19 22. Qxh6 Bxe4 $1 {[%mdl 512]} 23. Qxh5 Rxd3 24. Rxd3 Bxd3) 22. Rxg7+ {[%emt 0:00:00]} Kxg7 {[%emt 0:00:30]} 23. Nxd4 {[%emt 0:01:30]} Bxe4 {[%emt 0:00:30]} 24. Qe2 {[%emt 0:00:30]} (24. Ba6 $142 Rg8 25. Ne2) 24... Qf4 {[%emt 0:00:30]} 25. g3 {[%emt 0:00:30]} Bxd3 $1 {[%emt 0:00:30]} 26. Qxd3 {[%emt 0:00:30]} Qe4 {[%emt 0:00:30]} 27. Qa6 {[%emt 0:00:00]} Qg4 {[%emt 0:00:30]} (27... Rc3 $19 {...e5 is the strong threat.} 28. Qf1 (28. Qxa7 $2 {perishes.} Qg4 $19) 28... Ng4) 28. Re1 {[%emt 0:01:00]} (28. Qd3 $17 {was necessary.}) 28... Rc5 $2 {[%emt 0:00:30]} (28... Rc7 $19 29. Nb3 Qh3) 29. Nb3 {[%emt 0:00:30] This costs White the game.} ({White must play} 29. Nxe6+ $1 $15 fxe6 30. Qxa7+ Kg6 31. Qxb6) 29... Rc7 {[%emt 0:00:30]} 30. Qd3 {[%emt 0:00:30]} Qc4 {[%emt 0:00:30]} 31. Qd6 {[%emt 0:00:30]} (31. Qb1 $17 {is a better defense.}) 31... Rd7 $19 {[%emt 0:00:00]} 32. Qe5 {[%emt 0:00:30]} Qc2 {[%emt 0:01:00]} 33. Re2 {[%emt 0:00:00]} Rd1+ {[%emt 0:00:00]} 34. Kg2 {[%emt 0:01:00]} Qb1 {[%emt 0:00:00]} 35. Nd2 {[%emt 0:00:30]} Qd3 $36 {[%emt 0:01:30][%mdl 2048] Black has strong initiative.} ({Inferior is} 35... Qxa2 36. Qxf6+ $1 Kxf6 37. Ne4+ Kf5 38. Rxa2 Kxe4 39. Rxa7 $11) 36. Nf3 {[%emt 0:00:30]} Qd5 {[%emt 0:00:00]} 37. Qb2 {[%emt 0:00:00] [#]} (37. Qxd5 $17 Nxd5 38. Rd2) 37... Rd3 $1 38. Re3 {[%emt 0:01:00]} Rxe3 {[%emt 0:00:00]} 39. fxe3 {[%emt 0:00:30][%mdl 4096] Endgame KQN-KQN} Kg6 {[%emt 0:02:00] Against g4} 40. Qc2+ {[%emt 0:00:00]} Qe4 {[%emt 0:00:30]} 41. Qxe4+ {[%emt 0:31:00]} Nxe4 {[%emt 0:30:30] KN-KN} 42. Ne5+ {[%emt 0:00:00]} (42. Nd4 {was called for.}) 42... Kf6 {[%emt 0:00:30]} 43. Nc6 {[%emt 0:01:00] [#]} a5 {[%emt 0:00:30]} 44. Kf3 {[%emt 0:00:00]} Nc3 {[%emt 0:00:00]} 45. e4 Nxa2 {[%emt 0:01:00] Black is clearly winning.} 46. e5+ {[%emt 0:01:30]} Kg6 {[%emt 0:00:30] Threatens to win with ...Nb4.} 47. Ne7+ {[%emt 0:00:00]} Kg7 {[%emt 0:00:30]} 48. Ke3 {[%emt 0:01:00]} Nb4 {[%emt 0:00:00]} 49. Kd4 {[%emt 0:00:00] Inhibits Nd5.} a4 {[%emt 0:00:00][%cal Ob4d5,Ba5a4,Ba4a3,Ba3a2][%mdl 32] White must now prevent ...Nd5!} 50. Kc4 {[%emt 0:00:00] Against Nd5} Nd5 {[%emt 0:00:00]} 51. Nc6 {[%emt 0:01:30] Prevents b5+.} b5+ {[%emt 0:02:00]} 52. Kxb5 {[%emt 0:00:00]} a3 {[%emt 0:00:00] ( -> ...a2)} 53. Nd4 {[%emt 0:01:00]} a2 {[%emt 0:00:00]} 54. Nc2 {[%emt 0:00:30] [#] Prevents a1Q.} Ne3 $1 {[%emt 0:00:00][%mdl 512]} 55. Na1 {[%emt 0:00:00]} Nf5 {[%emt 0:00:00] Weighted Error Value: White=0.67/Black=0.18 (very precise)} 0-1

[Event "Bangabandhu Premier Div League 2022"]
[Site "Dhaka"]
[Date "2022.12.08"]
[Round "9.8"]
[White "Swarnavo Choudhury"]
[Black "Reefat, Bin-Sattar"]
[Result "0-1"]
[ECO "C00"]
[WhiteElo "1977"]
[BlackElo "2367"]
[Annotator "TA"]
[PlyCount "60"]
[EventDate "2022.11.30"]
[EventType "team-tourn"]
[EventCountry "BAN"]
[SourceTitle "playchess.com"]
[Source "ChessBase"]
[SourceQuality "1"]
[TimeControl "40/5400+30:1800+30"]

{[%evp 15,60,0,-1,-17,-10,-16,-20,-56,-45,-72,-53,-72,-79,-79,-75,-103,-44,-40,-26,-35,0,-43,-37,-74,-84,-99,-76,-102,-73,-179,-172,-333,-359,-336,-273,-833,-801,-993,-958,-29992,-29993,-29999,1283,-29994,-29995,-29999,436]} 1. e4 {[%emt 0:00:02]} e6 {[%emt 0:05:48]} 2. d3 {[%emt 0:04:56]} c5 {[%emt 0:01:28]} 3. g3 {[%emt 0:01:54]} Nc6 {[%emt 0:00:54]} 4. Nf3 {[%emt 0:00:42]} g6 {[%emt 0:05:48]} 5. c3 {[%emt 0:02:38]} Nge7 {[%emt 0:19:04]} 6. Bg2 {[%emt 0:03:21]} Bg7 {[%emt 0:01:06]} 7. Qe2 {[%emt 0:03:00]} d6 {[%emt 0:13:50][%cal Bd7d6,Bd6d5][%mdl 32]} 8. O-O {[%emt 0:01:57]} O-O {[%emt 0:02:00]} 9. Rd1 {[%emt 0:05:55] Recently 9.a3 got a lot of attention. C00: French: Unusual White 2nd moves.} e5 {[%emt 0:01:53]} 10. Nbd2 {[%emt 0:05:44]} h6 {[%emt 0:09:14]} 11. Nf1 {[%emt 0:07:05] The position is equal.} Be6 {[%emt 0:13:45] [#]} 12. h4 $146 {[%emt 0:27:04]} ({Predecessor:} 12. Nh4 d5 13. f4 d4 14. c4 Qd7 15. Nf3 Kh7 16. h4 exf4 17. gxf4 Bg4 18. N1h2 {0-1 (46) Purtov,A (2353)-Shinkarev,A (1845) St Petersburg 2019}) 12... d5 {[%emt 0:00:49]} 13. N1h2 {[%emt 0:04:04]} Qd7 {[%emt 0:05:10]} 14. Be3 {[%emt 0:01:25]} d4 {[%emt 0:00:13]} 15. Bd2 {[%emt 0:00:42]} b5 {[%emt 0:00:49]} (15... dxc3 $17 16. Bxc3 Rfd8) 16. cxd4 $15 {[%emt 0:03:00]} cxd4 {[%emt 0:00:15]} 17. Ne1 {[%emt 0:00:20]} f5 {[%emt 0:00:47]} 18. f4 {[%emt 0:02:02]} Rae8 {[%emt 0:00:40]} 19. Rdc1 {[%emt 0:04:31]} exf4 {[%emt 0:05:54]} (19... fxe4 {keeps more tension.} 20. dxe4 exf4 21. Bxf4 d3) 20. Bxf4 {[%emt 0:04:54]} fxe4 {[%emt 0:00:15]} 21. Bxe4 {[%emt 0:01:17]} Nd5 {[%emt 0:05:23]} 22. Qg2 {[%emt 0:08:29]} (22. Bxg6 $17 {keeps fighting.} Nxf4 23. gxf4) 22... Nce7 {[%emt 0:02:16]} 23. Bd2 $2 {[%emt 0:01:07] [#]} (23. Qc2) 23... Bh3 {[%emt 0:01:21]} 24. Qe2 {[%emt 0:04:27]} Qd6 {[%emt 0:00:27]} 25. g4 {[%emt 0:00:45]} (25. Ng2) 25... Qg3+ $19 {[%emt 0:01:33]} 26. Kh1 {[%emt 0:00:49]} Rf2 {[%emt 0:00:43][%csl Gf2][%cal Rg3h2] [#]} ({Not} 26... Qxh4 27. Nef3 Bxg4 28. Nxh4 $17) 27. Bxd5+ {[%emt 0:00:23]} Nxd5 {[%emt 0:00:06][%csl Gf2][%cal Rg3h2]} 28. Qe3 {[%emt 0:01:57]} Re6 $4 {[%mdl 8192]} (28... Qxh2# {avoids the disaster.}) 29. Qxe6+ $4 {[%emt 0:00:00][%mdl 8192]} (29. Qxg3 $18 Rxd2 30. Qxh3 Rxb2 31. g5) 29... Kh7 {[%emt 0:00:33][%csl Gg3][%cal Rf2h2]} 30. Qe8 {[%emt 0:00:12]} Rf1+ $4 {[%emt 0:00:32][%mdl 40960] Weighted Error Value: White=1.04/Black=0.12 (very precise) . Loss on time!?} (30... Rxh2# {and all is fine.}) 0-1

[Event "Bangabandhu Premier Div League 2022"]
[Site "Dhaka"]
[Date "2022.12.08"]
[Round "9.8"]
[White "Asif, Mahmud"]
[Black "Jamal Uddin"]
[Result "1-0"]
[ECO "D26"]
[WhiteElo "1926"]
[BlackElo "2092"]
[Annotator "TA"]
[PlyCount "121"]
[EventDate "2022.12.01"]
[EventCountry "BAN"]
[SourceTitle "playchess.com"]
[Source "ChessBase"]
[SourceQuality "1"]
[TimeControl "40/5400+30:1800+30"]

{[%evp 11,121,29,32,24,28,11,22,22,27,8,35,0,17,24,50,39,54,25,96,79,78,69,156,147,132,133,141,132,133,97,102,33,20,0,44,54,66,49,47,-23,-31,-34,-36,-32,-4,-33,0,0,0,-15,0,0,0,0,0,0,0,0,133,116,127,105,259,234,229,212,108,115,320,243,252,191,178,157,253,234,502,502,503,466,929,883,811,417,742,550,1064,963,12821,2346,12845,12845,12845,12846,29984,12846,12846,12845,12845,12846,12846,12847,12847,12846,12846,12847,12848,12848,12849,12849,12850,12850]} 1. d4 {[%emt 0:00:04]} Nf6 {[%emt 0:00:20]} 2. Nf3 {[%emt 0:01:16]} d5 {[%emt 0:00:36]} 3. c4 {[%emt 0:00:19]} dxc4 {[%emt 0:01:36]} 4. e3 {[%emt 0:01:22]} e6 {[%emt 0:00:10]} 5. Bxc4 {[%emt 0:00:28]} a6 {[%emt 1:30:18]} 6. O-O {[%emt 0:04:10]} b5 {[%emt 0:00:00]} 7. Bd3 {[%emt 0:02:11] 7.Be2 might become the main line. D26: Queen's Gambit Accepted: 4 e3 e6 5 Bxc5 c5 sidelines.} Nbd7 {[%emt 0:01:00]} 8. b3 {[%emt 0:05:19]} Bb7 {[%emt 0:00:00]} 9. Bb2 {[%emt 0:00:38] The position is equal.} Be7 {[%emt 0:00:00]} 10. Nbd2 {[%emt 0:03:17]} O-O {[%emt 0:01:30]} 11. Rc1 {[%emt 0:06:41] [#]} h6 $146 {[%emt 0:00:00]} ({Predecessor:} 11... c5 12. Bb1 Rc8 13. Qe2 cxd4 14. Bxd4 Bc5 15. Bb2 Qe7 16. Nd4 Rfd8 17. Rfd1 Ne5 18. Nxb5 Neg4 19. Nd4 Bxd4 20. Bxd4 {1-0 (57) Schulz,S-Szonyi,K Szombathely 1993}) 12. Qe2 {[%emt 0:05:10]} Nd5 {[%emt 0:01:00]} 13. Bb1 {[%emt 0:05:51]} Rc8 {[%emt 0:00:00]} 14. Ne4 {[%emt 1:00:44]} (14. g3 {keeps more tension.} c5 15. Qd3 N7f6 16. dxc5 Nb4 17. Qe2) 14... Qe8 {[%emt 0:00:00]} (14... c5 $11) 15. Nc5 {[%emt 0:00:00]} Nxc5 {[%emt 0:00:00]} 16. dxc5 {[%emt 0:00:00][%cal Bd4c5,Bc5c6][%mdl 32]} Bf6 {[%emt 0:00:00] Against c6} (16... f5 $14) 17. Qc2 {[%emt 0:00:00][%csl Gb1][%cal Rc2h7] [#]} g6 {[%emt 0:00:00]} 18. Bxf6 {[%emt 0:00:00]} Nxf6 {[%emt 0:00:00]} 19. c6 {[%emt 0:00:00]} Ba8 {[%emt 0:00:00]} 20. Ne5 {[%emt 0:00:00]} Qe7 {[%emt 0:00:00]} 21. Rfd1 {[%emt 0:00:00] White is much more active. The black rooks are badly placed.} (21. e4 $16) 21... Rfd8 $14 {[%emt 0:04:30]} 22. h4 {[%emt 0:00:00][%cal Oh4h5]} Rd5 {[%emt 0:00:30]} 23. Rxd5 {[%emt 0:00:00]} exd5 {[%emt 0:00:00]} 24. Nf3 {[%emt 0:00:00]} Rd8 {[%emt 0:01:00]} 25. Qd3 {[%emt 0:00:00]} (25. Nd4 $14) 25... Rd6 $1 $11 {[%emt 0:00:00]} 26. Nd4 {[%emt 0:00:00]} Ng4 {[%emt 0:00:00]} 27. g3 {[%emt 0:00:00][%cal Oh4h5]} (27. Nf5 $2 gxf5 28. g3 (28. Qxf5 $2 Qxh4 29. Qf4 Rf6 $19) 28... Rf6 $19) 27... Ne5 {[%emt 0:00:00] Against h5} (27... h5 {is more complex.} 28. Qc3 Rf6 29. Rc2 b4) 28. Qd2 {[%emt 0:07:00][%cal Oh4h5]} Nxc6 {[%emt 0:00:00]} (28... Bxc6 29. f4 Nc4 30. bxc4 dxc4 31. Nxc6 Rxc6 32. Qe2 $16) 29. h5 {[%emt 0:00:30]} Nxd4 {[%emt 0:00:00]} (29... gxh5 $2 30. Nf5 Qg5 31. Nxd6 cxd6 32. Qc2 $18) 30. Qxd4 {[%emt 0:00:00]} Bc6 {[%emt 0:00:00]} 31. hxg6 {[%emt 0:00:00]} fxg6 {[%emt 0:00:00]} 32. Qa7 {[%emt 0:00:00][%cal Oc1c6]} Kf7 {[%emt 0:00:00]} 33. Qxa6 {[%emt 0:00:00]} Qd7 {[%emt 0:04:30]} 34. Qa7 {[%emt 0:02:30]} Rf6 {[%emt 0:00:00]} (34... d4 $1 $11 {remains equal.} 35. exd4 Re6) 35. Qd4 {[%emt 0:00:30]} h5 {[%emt 0:00:00]} 36. Bd3 {[%emt 0:00:00]} Qd6 $2 {[%emt 0:00:06]} (36... Qg4 $16) 37. Rc5 {[%emt 0:00:00]} Qd7 {[%emt 0:01:00]} 38. a4 {[%emt 0:00:00]} bxa4 {[%emt 0:00:31]} 39. bxa4 {[%emt 0:00:00] [#] Strongly threatening a5.} Qd6 $2 {[%emt 0:00:39]} (39... Qg4 $16 {was worth a try.}) 40. Bb5 {[%emt 0:00:55]} Bb7 {[%emt 0:00:31]} 41. Qc3 {[%emt 0:32:05]} c6 {[%emt 0:30:12]} 42. Bf1 {[%emt 0:00:00] Prevents h4. Hoping for Ra5.} g5 {[%emt 0:01:31]} (42... Re6 $16 43. Ra5 (43. a5 h4 $16) 43... Re7) 43. e4 $18 {[%emt 0:01:00] e5 is the strong threat.} dxe4 {[%emt 0:00:00]} (43... Re6 44. exd5 cxd5) 44. Rxg5 {[%emt 0:00:00] Threatens to win with Qb3+.} Bc8 {[%emt 0:00:00]} 45. Bc4+ {[%emt 0:00:00]} Be6 {[%emt 0:00:00]} (45... Ke8 $142 46. Bb3 Rf5 47. Rg8+ Rf8 48. Rxf8+ Qxf8 49. Qxc6+ Bd7 50. Qa8+ Ke7 51. Qxe4+ Kd8 52. Qa8+ Ke7 53. Qxf8+ Kxf8) 46. Bxe6+ {[%emt 0:00:00]} (46. Rxh5 $2 Qd1+ 47. Bf1 Qxh5 $19) 46... Qxe6 {[%emt 0:00:00]} 47. Rxh5 {[%emt 0:00:00][%mdl 4096] Endgame And now Re5 would win. KQR-KQR} Kg6 {[%emt 0:00:00]} (47... e3 $142 48. f4 (48. fxe3 Qe4 $18) (48. Qxe3 Qxe3 49. fxe3 Rf3 $16) 48... Rg6 49. Rh7+ Kf8 50. Rh8+ Kf7 51. Rh7+ Kf8) 48. Rh4 {[%emt 0:00:00]} Qd5 {[%emt 0:00:00]} 49. Qe3 {[%emt 0:00:00]} Qd1+ {[%emt 0:00:00]} 50. Kh2 {[%emt 0:00:00]} Qxa4 {[%emt 0:00:00]} 51. Qh6+ {[%emt 0:00:00]} Kf7 {[%emt 0:00:00]} 52. Qh7+ {[%emt 0:04:30]} Kf8 {[%emt 0:00:00]} 53. Rxe4 {[%emt 0:00:00]} ({And not} 53. Qxe4 Qxe4 54. Rxe4 Rxf2+ 55. Kh3 Rc2 $11) (53. Qd7 $142 Rxf2+ 54. Kg1 Qa1+ 55. Kxf2 e3+ 56. Kg2 Qb2+ 57. Kh3 Qf6 58. Rf4) 53... Rxf2+ {[%emt 0:01:32] White is clearly winning.} 54. Kg1 {[%emt 0:00:00] Intending Qh8+ and mate.} Qd1+ {[%emt 0:01:55]} 55. Kxf2 {[%emt 0:00:00] White threatens Qf5+ and mate.} Qc2+ {[%emt 0:00:06]} 56. Kf3 {[%emt 0:00:00] Threatening mate with Qf5+.} Qd3+ {[%emt 0:00:37]} 57. Kg4 {[%emt 0:00:00] Qf5+ would kill now.} Qd1+ {[%emt 0:00:09]} 58. Kg5 {[%emt 0:00:00] White wants to mate with Qe7+.} Qd2+ {[%emt 0:01:41]} 59. Rf4+ {[%emt 0:00:00]} Ke8 {[%emt 0:00:01]} 60. Qe4+ {[%emt 0:00:00]} Kd7 {[%emt 0:00:44]} 61. Qd4+ {[%emt 0:00:00] Weighted Error Value: White=0.35/Black=0.56} 1-0

[Event "Bangabandhu Premier Div League 2022"]
[Site "Dhaka"]
[Date "2022.12.08"]
[Round "9.9"]
[White "Md, Mesbah Uddin"]
[Black "Manon, Reja Neer"]
[Result "0-1"]
[ECO "B11"]
[WhiteElo "1778"]
[BlackElo "2102"]
[Annotator "TA"]
[PlyCount "105"]
[EventDate "2022.11.30"]
[EventType "team-tourn"]
[EventCountry "BAN"]
[SourceTitle "playchess.com"]
[Source "ChessBase"]
[SourceQuality "1"]
[TimeControl "40/5400+30:1800+30"]

{[%evp 9,105,23,21,18,25,9,10,12,16,0,0,-15,-16,-12,0,-72,-57,-140,-127,-142,-134,-193,-200,-212,-193,-195,-193,-248,-245,-246,-260,-262,-265,-291,-287,-315,-326,-344,-226,-247,-222,-267,-259,-281,-257,-305,-294,-286,-225,-283,-276,-276,-276,-385,-390,-370,-367,-384,-384,-377,-353,-513,-460,-452,-411,-462,-461,-461,-461,-452,-358,-426,-420,-504,-469,-573,-564,-489,-616,-608,-528,-608,-605,-529,-493,-1289,-1286,-1250,-1215,-1754,-1537,-5627,-5529,-2603,-2364,-29968,-7725,-2350]} 1. e4 {[%emt 0:00:30]} c6 {[%emt 0:00:19]} 2. Nf3 {[%emt 0:00:00]} d5 {[%emt 0:00:11]} 3. Nc3 {[%emt 0:00:00]} Bg4 {[%emt 0:03:17]} 4. d4 {[%emt 0:02:25]} dxe4 {[%emt 0:03:01]} 5. Nxe4 {[%emt 0:00:14]} Bxf3 {[%emt 0:00:15]} 6. gxf3 {[%emt 0:00:55] B11: Caro-Kann: Two Knights Variation.} e6 {[%emt 0:05:32]} 7. Bf4 {[%emt 0:01:37]} Nf6 {[%emt 0:14:05] [#]} 8. Qd3 $146 {[%emt 0:02:35] The position is equal.} ({Predecessor:} 8. Nxf6+ Qxf6 9. Be5 Qd8 10. c3 Nd7 11. Bg3 Qb6 12. Qe2 Be7 13. h4 c5 14. Rd1 cxd4 15. Rxd4 {1-0 (30) Millet,M (1977)-Marchais,A (1782) Mulhouse 2016}) 8... Nd5 {[%emt 0:06:44]} 9. Bd2 {[%emt 0:00:45]} a5 {[%emt 0:13:52]} 10. a3 {[%emt 0:03:35] Inhibits Nb4.} b5 $1 {[%emt 0:04:46]} 11. Rg1 {[%emt 0:08:37]} Nd7 {[%emt 0:02:21]} 12. Bh3 {[%emt 0:11:15]} (12. c4 $11 {remains equal.} bxc4 13. Qxc4) 12... Qc7 $17 {[%emt 0:10:08]} 13. Rg2 {[%emt 0:05:18] Black continues to play with concentration.} (13. Bf1 $15) 13... g6 {[%emt 0:02:41]} 14. Ng5 {[%emt 0:03:04]} N7b6 {[%emt 0:14:53] Inhibits a4.} 15. Qe2 {[%emt 0:04:23]} (15. Kf1 $17 {is a better defense.}) 15... Be7 $19 {[%emt 0:04:11]} 16. b3 {[%emt 0:07:41]} Nf4 {[%emt 0:04:56]} 17. Bxf4 {[%emt 0:02:37]} Qxf4 {[%emt 0:00:03]} 18. Qe5 {[%emt 0:43:59]} (18. Qe4 {was necessary.} Qd6 19. f4) 18... Qxe5+ {[%emt 0:00:07]} 19. dxe5 {[%emt 0:00:00]} a4 {[%emt 0:00:53]} 20. b4 {[%emt 0:00:00]} Nc4 {[%emt 0:00:42]} 21. c3 {[%emt 0:00:00]} Nxe5 {[%emt 0:00:43]} 22. Ke2 {[%emt 0:00:00]} h6 {[%emt 0:01:57] Prevents f4.} 23. Ne4 {[%emt 0:00:00]} f5 {[%emt 0:00:02] Inhibits f4.} 24. f4 {[%emt 0:00:00]} Nd7 {[%emt 0:00:01]} 25. Nd2 {[%emt 0:00:00]} g5 {[%emt 0:01:10][%cal Bg6g5,Bg5f4][%mdl 32] Hoping for ...g4.} 26. Rg3 {[%emt 0:00:00]} gxf4 {[%emt 0:01:03]} 27. Rd3 {[%emt 0:00:00]} Ne5 {[%emt 0:01:57] Prevents Nf3.} 28. Rd4 {[%emt 0:00:00]} Rd8 {[%emt 0:01:10]} 29. Bg2 {[%emt 0:00:00]} Bf6 {[%emt 0:01:47]} 30. Rd1 {[%emt 0:00:00]} Ke7 {[%emt 0:01:03]} 31. Rxf4 {[%emt 0:00:00]} Ng6 {[%emt 0:00:08]} ({Not} 31... Rhg8 $2 32. Bf1) 32. Rf3 {[%emt 0:00:00]} Nh4 {[%emt 0:00:35]} 33. Rg3 {[%emt 0:00:00]} Nxg2 {[%emt 0:00:12]} 34. Rxg2 {[%emt 0:00:00]} Bxc3 {[%emt 0:00:02]} 35. Nf3 {[%emt 0:00:00]} (35. Rg3 $142 Be5 36. Rh3) 35... Rxd1 {[%emt 0:00:43]} 36. Kxd1 {[%emt 0:00:00][%mdl 4096] Endgame KRB-KRN} Bf6 {[%emt 0:00:12]} ({Wrong is} 36... Bb2 $2 37. Rg3 $19) 37. Kc2 {[%emt 0:00:00]} e5 {[%emt 0:00:31]} 38. Ne1 {[%emt 0:00:00]} Rd8 {[%emt 0:01:45]} 39. f3 {[%emt 0:00:00]} Bg5 {[%emt 0:01:05]} 40. Nd3 {[%emt 0:00:00]} Rd5 {[%emt 0:00:30]} 41. h4 {[%emt 0:23:11]} Bf6 {[%emt 0:30:10]} 42. Rg6 {[%emt 0:00:13]} h5 {[%emt 0:00:54]} 43. Rh6 {[%emt 0:01:12]} Kf7 {[%emt 0:00:00] [#] White must now prevent ...Kg7.} ({Inferior is} 43... Bxh4 44. Rxh5 Bf6 45. Rxf5 $17) 44. Rh7+ {[%emt 0:00:00]} Kg6 {[%emt 0:00:00]} 45. Rc7 {[%emt 0:00:00]} Bxh4 {[%emt 0:00:00]} 46. Rxc6+ {[%emt 0:00:00]} Bf6 {[%emt 0:00:00]} 47. Rc5 {[%emt 0:00:00]} (47. Nf2 $142 Rd4 48. Rb6) 47... Rxc5+ {[%emt 0:00:00]} 48. bxc5 {[%emt 0:00:00] KB-KN} h4 {[%emt 0:00:00][%cal Bh5h4,Bh4h3,Bh3h2][%mdl 32] [#] Threatens to win with ...h3.} 49. c6 {[%emt 0:00:00]} Bd8 {[%emt 0:00:00] Strongly threatening ...h3.} 50. Nxe5+ {[%emt 0:00:00]} Kf6 {[%emt 0:00:00]} 51. f4 {[%emt 0:00:00]} h3 {[%emt 0:00:00] ( -> ...h2)} 52. Nd3 {[%emt 0:00:00]} h2 {[%emt 0:00:00]} 53. Nf2 {[%emt 0:22:54] Weighted Error Value: White=0.48/Black=0.12 (very precise)} 0-1